Cogmind - Beta 11 X3 --- EXPLORER MODE // 2021.03.15 @ 21:54:30 // Winter2019/RPGLIKE Player: jfk Result: Destroyed by D-53 Grenadier with Mini Grenade Launcher Performance ------------- Evolutions (0) 0 Regions Visited (2) 400 Robots Destroyed (2) 10 Value Destroyed (53) 53 Prototype IDs (0) 0 Alien Tech Used (0) 0 Bonus (-146) -146 TOTAL SCORE: 317 Bonus ------- Friendly Fire -146 Cogmind --------- Core Integrity 0/600 Matter 161/300 Energy 99/100 System Corruption 2% Temperature Cool (0) Movement Core (50) Location -10/Mines Parts ------- > --- POWER (1) -------- (None) > --- PROPULSION (1) --- (None) > --- UTILITY (1) ------ (None) > --- WEAPON (1) ------- Rocket Launcher > --- INVENTORY (0) ---- (None) Peak State ------------ > --- POWER ------------ (None) > --- PROPULSION ------- (None) > --- UTILITY ---------- (None) > --- WEAPON ----------- Rocket Launcher > --- INVENTORY -------- (None) [Rating: 2] Favorites ----------- Power None Propulsion None Utility None Weapon Rocket Launcher Launcher Rocket Launcher Special Weapon Mining Laser Build | -11 -10 -10 ------- Run | Scr Mat Min Slots Evolved . | . . . Power . | . . . Propulsion . | . . . Utility . | . . . Weapon . | . . . Parts Attached 2 | . 1 1 Power . | . . . Engine . | . . . Core . | . . . Reactor . | . . . Propulsion . | . . . Treads . | . . . Leg . | . . . Wheel . | . . . Hover . | . . . Flight . | . . . Utility . | . . . Device . | . . . Storage . | . . . Processor . | . . . Hackware . | . . . Protection . | . . . Artifact . | . . . Weapon 2 | . 1 1 Energy Gun . | . . . Energy Cannon . | . . . Ballistic Gun . | . . . Ballistic Cannon . | . . . Launcher 1 | . . 1 Special Weapon 1 | . 1 . Impact Weapon . | . . . Slashing Weapon . | . . . Piercing Weapon . | . . . Special Melee Weapon . | . . . Unidentified Prototypes . | . . . Parts Lost 1 | . . 1 Power . | . . . Propulsion . | . . . Utility . | . . . Weapon 1 | . . 1 Highest Loss Streak 1 | . . 1 Average Slot Usage (%) 17 | . 3 21 Launcher 14 | . . 19 Special Weapon 2 | . 3 2 Naked Turns 103 | . 67 36 Heaviest Build 4 | . 1 4 Greatest Support 13 | 3 13 13 Greatest Overweight (x) . | . . . Average Overweight (x) . | . . . Largest Inventory Capacity . | . . . Average Capacity . | . . . Most Carried . | . . . Average Carried . | . . . Final Capacity . | . . . Final Carried . | . . . Class Distribution -------------------- 100% | Hacker-Mutant Dominant Class ---------------- Hacker-Mutant | -10/Materials Hacker-Mutant | -10/Mines Resources | -11 -10 -10 ----------- Run | Scr Mat Min Matter Collected 150 | 48 . 102 Remotely . | . . . Salvage Created 70 | . . 70 Parts 2 | . . 2 Haulers Intercepted . | . . . Recyclers Shooed . | . . . Parts Field Recycled . | . . . Retrieved Matter . | . . . Parts Self-Destructed . | . . . Prevented . | . . . Kills | -11 -10 -10 ------- Run | Scr Mat Min Combat Hostiles Destroyed 3 | . . 3 Cannons 1 | . . 1 AOE 2 | . . 2 Classes Destroyed 3 | . . 3 Demolisher 1 | . . 1 Assembled 2 | . . 2 Thug 1 | . . 1 Best Kill Streak 1 | . . 1 Combat Bots Only 1 | . . 1 Max Kills in Single Turn 2 | . . 2 Gunslinging . | . . . Exploded 1 | . . 1 Melee . | . . . Uniques/NPCs Destroyed . | . . . Combat | -11 -10 -10 -------- Run | Scr Mat Min Damage Taken 650 | . 7 643 Core 601 | . 7 594 Absorbed by Shields . | . . . Redirected to Core 143 | . . 143 Core Remaining (%) 100 | 100 . . Volleys Fired 11 | . . 11 Largest 1 | . . 1 Hottest 100 | . . 100 Shots Fired 11 | . . 11 Gun . | . . . Cannon . | . . . Launcher 7 | . . 7 Special 4 | . . 4 Kinetic . | . . . Thermal 4 | . . 4 Explosive 7 | . . 7 Electromagnetic . | . . . Robot Hit Streak 5 | . . 5 Robot Miss Streak 2 | . . 2 Penetration Max . | . . . Secondary Targets . | . . . Shots Hit Robots 8 | . . 8 Core Hits 15 | . . 15 Critical Hits . | . . . Critical Kills . | . . . Critical Parts Destroyed . | . . . Melee Attacks . | . . . Impact . | . . . Slashing . | . . . Piercing . | . . . Sneak Attacks . | . . . Combat Hostiles . | . . . Follow-up Attacks . | . . . Damage Inflicted 418 | . . 418 Guns . | . . . Cannons . | . . . Explosions 321 | . . 321 Melee . | . . . Ramming 1 | . . 1 Kinetic . | . . . Thermal 96 | . . 96 Explosive 321 | . . 321 Electromagnetic . | . . . Impact . | . . . Slashing . | . . . Piercing . | . . . Highest Corruption 2 | . . 2 Average Corruption 2 | . . 2 Corruption Purged . | . . . Effects 1 | . . 1 Energy Discharges 1 | . . 1 Overload Shots . | . . . Overflow Damage 4 | . . 4 Projectiles . | . . . Explosions 4 | . . 4 Melee . | . . . Knockbacks . | . . . Impact . | . . . Kinetic . | . . . Secondary . | . . . Self-Inflicted Damage 19 | . . 19 Shots 2 | . . 2 Rammed 1 | . . 1 Targets Rammed 1 | . . 1 Kicked . | . . . Crushed . | . . . Highest Temperature 25 | . . 25 Average Temperature 21 | . . 21 Received Heat Transfer 75 | . 6 69 Siege Activations . | . . . Robots Corrupted . | . . . Combat Hostiles . | . . . Parts Fried . | . . . Impact Corruptions . | . . . Robots Melted . | . . . Combat Hostiles . | . . . Parts Melted . | . . . Heat Transferred 200 | . . 200 Parts Sabotaged . | . . . Parts Stolen . | . . . Parts Stripped . | . . . Power Chain Reactions . | . . . Missiles Intercepted . | . . . Alert | -11 -10 -10 ------- Run | Scr Mat Min Peak Influence 45 | . 45 32 Initial 12 | . . 12 Average 6 | . 18 4 Maximum Alert Level . | . . . Low Security (%) 100 | 100 100 100 Level 1 . | . . . Level 2 . | . . . Level 3 . | . . . Level 4 . | . . . Level 5 . | . . . High Security . | . . . Max Security . | . . . Squads Dispatched . | . . . Investigation . | . . . Extermination . | . . . Reinforcement . | . . . Assault . | . . . Garrison . | . . . Intercept . | . . . Construction Impeded . | . . . Haulers Reinforced . | . . . Stealth | -11 -10 -10 --------- Run | Scr Mat Min Distress Signals . | . . . Communications Jammed . | . . . Distress Signals . | . . . Times Spotted 16 | . 4 12 Peak Tracking Total 17 | . 4 17 Tactical Retreats 2 | . . 2 Traps | -11 -10 -10 ------- Run | Scr Mat Min Traps Triggered 1 | . 1 . Indirectly . | . . . Trap Hack Attempts . | . . . Triggered . | . . . Disarmed . | . . . Reprogrammed . | . . . Reused . | . . . Traps Extracted . | . . . Installed . | . . . Triggered . | . . . Machines | -11 -10 -10 ---------- Run | Scr Mat Min Machines Disabled . | . . . Max in Single Turn . | . . . Machines Sabotaged . | . . . Garrisons Compromised . | . . . Overloaded Fab Kills . | . . . Fab Network Shutdowns . | . . . Hacking | -11 -10 -10 --------- Run | Scr Mat Min Machines Accessed . | . . . Terminals . | . . . Fabricators . | . . . Repair Stations . | . . . Recycling Units . | . . . Scanalyzers . | . . . Garrison Access . | . . . Total Hacks . | . . . Successful . | . . . Failed . | . . . Catastrophic . | . . . Database Lockouts . | . . . Manual . | . . . Terminals . | . . . Fabricators . | . . . Repair Stations . | . . . Recycling Units . | . . . Scanalyzers . | . . . Garrison Access . | . . . Terminal Hacks . | . . . Fabricator Hacks . | . . . Repair Station Hacks . | . . . Recycling Unit Hacks . | . . . Scanalyzer . | . . . Garrison Access Hacks . | . . . Unauthorized Hacks . | . . . Terminals . | . . . Fabricators . | . . . Repair Stations . | . . . Recycling Units . | . . . Scanalyzers . | . . . Garrison Access . | . . . Data Cores Recovered . | . . . Used . | . . . Hacking Detections . | . . . Full Trace Events . | . . . Feedback Events . | . . . Feedback Blocked . | . . . Robot Schematics Acquired . | . . . Robots Built . | . . . Matter . | . . . Time . | . . . Total Robot Build Rating . | . . . Part Schematics Acquired . | . . . Parts Built . | . . . Matter . | . . . Time . | . . . Total Part Build Rating . | . . . Parts Repaired . | . . . Time . | . . . Parts Recycled . | . . . Recycled Matter . | . . . Retrieved Matter . | . . . Retrieved Components . | . . . Parts Scanalyzed . | . . . Part Schematics Acquired . | . . . Parts Damaged . | . . . Bothacking | -11 -10 -10 ------------ Run | Scr Mat Min Used RIF Installer . | . . . Robots Hacked . | . . . Non-combat . | . . . Combat . | . . . Robot Hacks Applied . | . . . Relay Couplers Released . | . . . Robots Rewired . | . . . Allies Hacked . | . . . Hacks Repelled . | . . . Allies | -11 -10 -10 -------- Run | Scr Mat Min Total Allies . | . . . Largest Group . | . . . Highest-Rated Group . | . . . Highest-Rated Ally . | . . . Total Orders . | . . . Ally Attacks . | . . . Total Damage . | . . . Kills . | . . . Allies Corrupted . | . . . Allies Melted . | . . . Intel | -11 -10 -10 ------- Run | Scr Mat Min Robot Analysis Total . | . . . Derelict Logs Recovered . | . . . Drone Launches . | . . . Drone Recoveries . | . . . Exploration | -11 -10 -10 ------------- Run | Scr Mat Min Turns Passed 337 | 9 70 258 Spaces Moved 572 | 18 136 418 Core 572 | 18 136 418 Treads . | . . . Legs . | . . . Wheels . | . . . Hover . | . . . Flight . | . . . Fastest Speed 50 | 50 50 50 Average Speed 50 | 50 50 50 Slowest Speed 50 | 50 50 50 Overloaded Moves . | . . . Propulsion Burnouts . | . . . Robots Hopped . | . . . Cave-ins Triggered . | . . . Exploration Rate (%) 36 | 3 30 77 Regions Visited 2 Branch Regions 1 Pre-discovered Areas 1 | . . 1 Known Exits Taken 2 | 1 1 . Unknown Exits Taken . | . . . Scrap Searched . | . . . Spaces Dug . | . . . Terrain Destroyed 56 | . . 56 Melee . | . . . Projectile . | . . . AOE 56 | . . 56 Terrain Rammed . | . . . Walls Destroyed . | . . . Machines Disabled . | . . . Actions | -11 -10 -10 --------- Run | Scr Mat Min Total 600 | 17 136 447 Wait 16 | . . 16 Move 570 | 17 135 418 Hop . | . . . Pick Up . | . . . Fast Attach 2 | . 1 1 Attach . | . . . Detach . | . . . Swap . | . . . Drop . | . . . Fire 11 | . . 11 Melee . | . . . Ram 1 | . . 1 Kick . | . . . Crush . | . . . Escape Stasis . | . . . Rewire . | . . . Trap . | . . . Miscellaneous . | . . . Route ------- -11/Scrapyard -10/Materials -10/Mines (discovered 2 exits: *Mat x2) History --------- Turn | Location | Event 3 | -11/Scrapyard | Identified exit to Materials 3 | -11/Scrapyard | Discovered exit to Materials (range 15) 10 | -11/Scrapyard | Entered Materials 70 | -10/Materials | Identified exit to Mines 70 | -10/Materials | Discovered exit to Mines (range 9) 80 | -10/Materials | Entered Mines 81 | -10/Mines | Learned location of Storage (-7) 81 | -10/Mines | Assembled infested the area 110 | -10/Mines | Core integrity fell below 50% 139 | -10/Mines | Received a Rocket Launcher from a helpful Derelict 178 | -10/Mines | Identified exit to Materials 178 | -10/Mines | Discovered exit to Materials (range 5) 213 | -10/Mines | Discovered exit to Materials (range 8) 313 | -10/Mines | Build established: Hacker-Mutant 329 | -10/Mines | Core integrity fell below 20% 338 | -10/Mines | Destroyed by D-53 Grenadier with Mini Grenade Launcher Last Messages --------------- 00139_ UD-BHW(g) slips back into the shadows. 00139_ as-52520 destroyed. 00140_ Acquired Rocket Launcher. 00141_ QC-JS4(g) shuts down. 00141_ as-61426 destroyed. 00141_ QC-JS4(g) destroyed. 00141_ Destroyed Asb. F-torch. 00144_ U-05 Engineer lays Concrete. 00145_ Destroyed Asb. Hover Unit. 00145_ U-05 Engineer lays Concrete. 00178_ EXIT=FOUND: MATERIALS 00206_ U-05 Engineer lays Concrete. 00209_ System corrupted: Energy discharge (-37). 00213_ EXIT=FOUND: MATERIALS 00259_ K-01 Serf collects debris. 00313_ Acquired 85 matter. 00328_ D-53 Grenadier destroyed. 00329_ The unstable cave ceiling collapses. 00336_ K-01 Serf collects debris. 00338_ The unstable cave ceiling collapses. Map ----- +----------------------------------------------------+ | ##### #?## # ##??????????## |# # #? | | #### #???????????#### ## ##? | | #?????????###### ### #?? | | #??????????# #?# #?? | | ## #### # #?????????# ######? #?? | | ####### #?# #### #??????### ##????? #?? | | ??????# ## # ### #?# #### ##???? #?? | | ??????# ## # #???? #?# ##??? ?? | | ??????## ### ##### # ### ##?? ?? | | ???????####?# #????? ## #??????# #??# #?? | | ????????????# #####??##?????????## #???# #?? | | ????????????# #??# ??????????## ##### #?? | | ????????????##### #??# ?????????#### #?? | | ????????????????# #??# #??????? ## #######?? | | ????????????????# #??# ###?#### #??????? | | ????????????????# #??# ######## #??????? | | ????????????????# #??#k% =% #??????? | | ????????????????# #?## [ ##??????? | | ????????????????# #?# ########## #???????? | | ???????????????## ### #????????# ##???????? | | ??????????????## # ##?????????###????????? | | ?????????????### ##????????????????????? | | ?????????????# #?????????????????????? | | ?????????????# # #?????????????????????? | | #????????????# d ## #??????????????????? | | ##???????????# @ #??????????????????? | | ##??????????# ###??????????????????? | | ##?????????## ##????????????????????? | | #??????????## # ###?????????????????????? | | #???????????#### ##???????????????????????? | | ##??????######### #####????????????????????????? | | ###???????# #????????????????????????????? | | ??????????# #########????????????????????????????? | | ??????????# #????????????????????????????????????? | | ??????????# #????????????????????????????????????? | | ??????????# #????????????????????????????????????? | | ??????????# #????????????????????????????????????? | | ??????????# #????????????????????????????????????? | | ???????#### #????????????????????????????????????? | | ???????# #????????????????????????????????????? | | ???????# ####????????????????????????????????????? | | ???????# #???????????????????????????????????????? | | ?????### ####????????????????????????????????????? | | ?????# #????????????????????????????????????? | | ?????# #????????????????????????????????????? | | ?????# < #????????????????????????????????????? | | ?????# #????????????????????????????????????? | | ?????# #????????????????????????????????????? | | ?????# #????????????????????????????????????? | | ?????########????????????????????????????????????? | +----------------------------------------------------+ Best States ------------- Heat Dissipation 25 Energy Generation 5 Energy Capacity 100 Matter Stores 205 Matter Capacity 300 Sight Range 16 Terrain Scan Density 10 Resistance: KI 35 Resistance: TH 35 Resistance: EX 35 Resistance: EM 35 Resistance: I 35 Resistance: S 35 Resistance: P 35 Evasion (%) 50 Offensive Hacking 20 Item Schematics ----------------- None Robot Schematics ------------------ None Fabricated ------------ Nothing Alien Tech Used ----------------- None Achievements -------------- None Challenges ------------ None RPGLIKE | -11 -10 -10 --------- Run | Scr Mat Min Levels Raised . | . . . XP Earned 6650 | 6000 . 650 XP Spent 700 | . 700 . Upgrades 2 | . 2 . Mass Support 2 | . 2 . Protomatter Created 3 | . . 3 Protomatter Decayed 24 | . . 24 Game ------ Seed SuperchargedSiegeNanosword Manual? 0 Play Time 00:06:35 Cumulative 223.2 hours Start 2021.03.15 @ 21:50:44 End 2021.03.15 @ 21:54:30 Sessions 1 Manual Loads 0 Difficulty Explorer Special Mode Winter2019/RPGLIKE Game No. 57 Rogue 0 Adventurer 0 Explorer 57 Win Type - Total 23 Types 12/3/1/1/1/2/1/2/0 Lore% 69 Gallery% 82 Achievement% 76 Wizard Run 0 Options --------- ASCII 1 Keyboard 0 Movement Mouse Keybinds 0 Fullscreen 1 Font 18/SmallcapsGlow Map View 76x50 Tactical HUD 1 Map Filters NONE Filters NONE Steam 1 RUN: 02ade0c4-d9dd-4b68-ab94-65d3c3380c95